Cogmind - Beta 16.1 @@@ ROGUE MODE // 2026.03.05 @ 05:38:05 Player: Klax Result: Destroyed by Y-54 Guardian with Gatling Laser Performance ------------- Evolutions (3) 1500 Regions Visited (6) 1200 Robots Destroyed (20) 100 Value Destroyed (691) 691 Prototype IDs (2) 40 Alien Tech Used (0) 0 Bonus (416) 416 TOTAL SCORE: 3947 Bonus ------- Pacifist 200 Follower Combat Kills 216 Cogmind --------- Core Integrity 0/700 Matter 285/300 Energy 98/100 System Corruption 2% Temperature Cool (12) Movement Core (50) Location -7/Lower Caves Parts ------- > --- POWER (2) -------- (None) > --- PROPULSION (2) --- (None) > --- UTILITY (6) ------ (None) > --- WEAPON (3) ------- (None) > --- INVENTORY (5) ---- Improved Deuterium Engine Heat Sink Targeting Computer Improved Light Armor Plating Improved Light Armor Plating Peak State ------------ > --- POWER ------------ Light Deuterium Engine Light Deuterium Engine > --- PROPULSION ------- Aluminum Leg Aluminum Leg > --- UTILITY ---------- Improved Heat Sink Small Storage Unit Advanced Weight Redist. System Visual Processing Unit Core Analyzer Improved Light Armor Plating > --- WEAPON ----------- Spread Laser Light Assault Rifle Spear > --- INVENTORY -------- Light Deuterium Engine Aluminum Leg Heat Sink Targeting Computer Improved Light Armor Plating Improved Light Armor Plating Small Laser [Rating: 32] Favorites ----------- Power Light Deuterium Engine Engine Light Deuterium Engine Propulsion Aluminum Leg Leg Aluminum Leg Wheel Compact Wheel Utility Small Storage Unit Device Improved Heat Sink Storage Small Storage Unit Processor Visual Processing Unit Protection Improved Light Armor Plating Weapon Small Laser Energy Gun Small Laser Ballistic Gun Light Assault Rifle Piercing Weapon Spear Build | -11 -10 -9 -9 -8 -7 -7 ------- Run | Yrd Mat Mat Sto Mat Fac Low Slots Evolved 6 | . . 2 . 2 2 . Power 1 | . . . . . 1 . Propulsion . | . . . . . . . Utility 4 | . . 2 . 1 1 . Weapon 1 | . . . . 1 . . Parts Attached 34 | 6 1 2 7 6 12 . Power 7 | 1 . . 1 . 5 . Engine 7 | 1 . . 1 . 5 . Core . | . . . . . . . Reactor . | . . . . . . . Propulsion 10 | 2 . 1 3 2 2 . Treads . | . . . . . . . Leg 9 | 2 . 1 3 2 1 . Wheel 1 | . . . . . 1 . Hover . | . . . . . . . Flight . | . . . . . . . Utility 10 | 1 1 1 1 3 3 . Device 5 | . 1 1 . 3 . . Storage 1 | 1 . . . . . . Processor 3 | . . . 1 . 2 . Hackware . | . . . . . . . Protection 1 | . . . . . 1 . Artifact . | . . . . . . . Weapon 7 | 2 . . 2 1 2 . Energy Gun 5 | 2 . . 1 1 1 . Energy Cannon . | . . . . . . . Ballistic Gun 1 | . . . 1 . . . Ballistic Cannon . | . . . . . . . Launcher . | . . . . . . . Special Weapon . | . . . . . . . Impact Weapon . | . . . . . . . Slashing Weapon . | . . . . . . . Piercing Weapon 1 | . . . . . 1 . Special Melee Weapon . | . . . . . . . Unidentified Prototypes 2 | . . . 1 . 1 . Parts Lost 25 | . . 2 5 2 16 . Power 6 | . . . 2 . 4 . Propulsion 7 | . . . 2 1 4 . Utility 7 | . . 1 . 1 5 . Weapon 5 | . . 1 1 . 3 . Highest Loss Streak 9 | . . 2 3 1 9 . To Critical Strikes . | . . . . . . . Average Backups 4 | 1 1 1 3 3 6 5 Power . | . 1 1 . . . 1 Propulsion . | . . . 1 1 . . Utility 2 | . . . . . 3 4 Weapon . | . . . 1 1 . . Tool/Special . | . . . . . . . Unused Backups 4 | . . . . . . 4 Power 1 | . . . . . . 1 Propulsion . | . . . . . . . Utility 3 | . . . . . . 3 Weapon . | . . . . . . . Tool/Special . | . . . . . . . Average Slot Usage (%) 73 | . 90 81 73 83 70 . Engine 8 | . 14 11 8 . 10 . Leg 13 | . 28 22 22 16 7 . Device 12 | . 4 19 11 21 10 . Storage 8 | . 14 11 11 9 6 . Processor 9 | . . . 4 9 13 . Protection 1 | . . . . . 3 . Energy Gun 12 | . 28 18 15 17 7 . Ballistic Gun 3 | . . . 1 9 3 . Piercing Weapon 1 | . . . . . 3 . Peak Build Rating 32 | 6 7 8 11 15 32 1 Average Rating 15 | 4 6 7 7 13 23 1 On Entrance 6 | . 6 7 6 8 15 1 Avg Prop Armor Cover (%) . | . . . . . . . Naked Turns 51 | . . . . . 13 38 Heaviest Build 28 | 13 14 15 13 12 28 . Greatest Support 20 | 20 20 20 20 20 20 3 Greatest Overweight (x) 9 | . . . . 1 9 . Average Overweight (x) . | . . . . . 1 . Largest Inventory Capacity 8 | 8 8 8 8 8 8 5 Average Capacity 7 | 6 8 8 8 8 7 5 Most Carried 8 | 5 3 2 6 5 8 5 Average Carried 4 | 1 1 1 3 3 6 5 Final Capacity 8 | 8 8 8 8 8 5 5 Final Carried 5 | 1 2 2 5 3 5 5 Class Distribution -------------------- 28% | Mutant 25% | Scavenger-Mutant 19% | Scavenger-Gunner 13% | Scavenger-Skirmisher 11% | Commander-Mutant Dominant Class ---------------- Mutant | -10/Materials Mutant | -9/Materials Commander-Mutant | -9/Storage Scavenger-Skirmisher | -8/Materials Scavenger-Mutant | -7/Factory Mutant | -7/Lower Caves Resources | -11 -10 -9 -9 -8 -7 -7 ----------- Run | Yrd Mat Mat Sto Mat Fac Low Matter Collected 476 | 185 . . 156 47 88 . Remotely . | . . . . . . . Salvage Created 779 | . . 147 223 153 256 . Parts 48 | . . 7 14 8 19 . Haulers Intercepted . | . . . . . . . Recyclers Shooed 1 | . . . . 1 . . Parts Field Recycled . | . . . . . . . Retrieved Matter . | . . . . . . . Parts Self-Destructed . | . . . . . . . Prevented . | . . . . . . . Parts Restored . | . . . . . . . Kills | -11 -10 -9 -9 -8 -7 -7 ------- Run | Yrd Mat Mat Sto Mat Fac Low Combat Hostiles Destroyed 17 | . . 3 5 3 6 . Melee 1 | . . . . . 1 . Guns 13 | . . 1 5 3 4 . AOE 2 | . . 2 . . . . Classes Destroyed 8 | . . 2 2 . 4 . Builder 1 | . . . . . 1 . Tunneler 1 | . . . . . 1 . Watcher 1 | . . . 1 . . . Swarmer 4 | . . . 1 . 3 . Grunt 5 | . . 2 2 1 . . Duelist 1 | . . . . . 1 . Sentry 6 | . . 1 2 2 1 . Programmer 1 | . . . . . 1 . Best Kill Streak 3 | . . 2 2 1 3 . Combat Bots Only 3 | . . 2 2 1 3 . Max Kills in Single Turn 2 | . . 2 1 1 1 . Gunslinging . | . . . . . . . Exploded 2 | . . 2 . . . . Melee 1 | . . . . . 1 . Uniques/NPCs Destroyed . | . . . . . . . Combat | -11 -10 -9 -9 -8 -7 -7 -------- Run | Yrd Mat Mat Sto Mat Fac Low Hostile Shots Fired 300 | . . 41 55 42 158 4 Missed 109 | . . 17 17 21 52 2 Hits 191 | . . 24 38 21 106 2 Melee 8 | . . . . . 8 . Projectile 183 | . . 24 38 21 98 2 Critical Strikes 12 | . . 1 2 2 7 . Damage Taken 2898 | . . 331 497 346 1700 24 Core 927 | . . 59 122 36 686 24 Absorbed by Shields . | . . . . . . . Core Remaining (%) 86 | 100 100 . 54 93 . . Volleys Fired 89 | . 1 19 25 13 31 . Largest 3 | . 2 2 2 3 2 . Hottest 125 | . 80 80 96 125 85 . Shots Fired 146 | . 2 28 34 34 48 . Gun 146 | . 2 28 34 34 48 . Cannon . | . . . . . . . Launcher . | . . . . . . . Special . | . . . . . . . Kinetic 31 | . . . 1 13 17 . Thermal 103 | . 1 17 33 21 31 . Explosive . | . . . . . . . Electromagnetic 12 | . 1 11 . . . . Robot Hit Streak 16 | . 1 4 6 6 16 . Robot Miss Streak 8 | . 1 2 4 6 8 . Penetration Max . | . . . . . . . Secondary Targets . | . . . . . . . Shots Hit Robots 100 | . 1 15 21 22 41 . Core Hits 51 | . . 5 11 15 20 . Critical Kills 1 | . . . . . 1 . Critical Parts Destroyed . | . . . . . . . Critical Strikes 3 | . . . . . 3 . Destroy 1 | . . . . . 1 . Impale 2 | . . . . . 2 . Melee Attacks 4 | . . . . . 4 . Impact . | . . . . . . . Slashing . | . . . . . . . Piercing 4 | . . . . . 4 . Sneak Attacks 2 | . . . . . 2 . Combat Hostiles . | . . . . . . . Follow-up Attacks . | . . . . . . . Damage Inflicted 1317 | . 11 240 271 224 571 . Guns 1088 | . 11 173 263 224 417 . Cannons . | . . . . . . . Explosions 67 | . . 67 . . . . Melee 154 | . . . . . 154 . Ramming 8 | . . . 8 . . . Kinetic 146 | . . . 10 49 87 . Thermal 912 | . 11 143 253 175 330 . Explosive . | . . . . . . . Electromagnetic 97 | . . 97 . . . . Impact . | . . . . . . . Slashing . | . . . . . . . Piercing 154 | . . . . . 154 . Highest Corruption 2 | . . . . 1 2 2 Average Corruption 1 | . . . . 1 2 2 Corruption Purged . | . . . . . . . Corruption Blocked . | . . . . . . . Effects 3 | . . . . . 3 . Message Errors 1 | . . . . . 1 . Energy Discharges 1 | . . . . . 1 . Parts Rejected 1 | . . . . . 1 . Overload Shots . | . . . . . . . Overflow Damage 108 | . . . . . 108 . Projectiles . | . . . . . . . Explosions . | . . . . . . . Melee 108 | . . . . . 108 . Knockbacks . | . . . . . . . Impact . | . . . . . . . Kinetic . | . . . . . . . Secondary . | . . . . . . . Self-Inflicted Damage . | . . . . . . . Shots . | . . . . . . . Rammed . | . . . . . . . Targets Rammed 1 | . . . 1 . . . Kicked 1 | . . . 1 . . . Crushed . | . . . . . . . Highest Temperature 117 | . 18 24 117 18 32 . Average Temperature 28 | . 12 13 41 10 13 . Received Heat Transfer 897 | . . 96 195 162 432 12 Siege Activations . | . . . . . . . Martial Activations . | . . . . . . . Shielding Activations . | . . . . . . . Robots Disrupted . | . . . . . . . Combat Hostiles . | . . . . . . . Robots Corrupted . | . . . . . . . Combat Hostiles . | . . . . . . . Parts Fried . | . . . . . . . Impact Corruptions . | . . . . . . . Robots Melted 1 | . . . . . 1 . Combat Hostiles 1 | . . . . . 1 . Parts Melted 3 | . . . 1 1 1 . Heat Transferred 1722 | . 25 175 572 345 605 . Parts Sabotaged . | . . . . . . . Parts Stolen . | . . . . . . . Parts Stripped . | . . . . . . . Power Chain Reactions 1 | . . 1 . . . . Alert | -11 -10 -9 -9 -8 -7 -7 ------- Run | Yrd Mat Mat Sto Mat Fac Low Maximum Alert Level 1 | . . . 1 . . . Low Security (%) 98 | 100 100 100 93 100 100 . Level 1 1 | . . . 6 . . . Level 2 . | . . . . . . . Level 3 . | . . . . . . . Level 4 . | . . . . . . . Level 5 . | . . . . . . . High Security . | . . . . . . . Max Security . | . . . . . . . Peak Influence 217 | . . 74 217 63 70 . Initial 63 | . . . 31 63 . . Average 29 | . . 28 91 34 7 . Influence Increases 939 | . . 144 540 80 175 . Destroy 0b10 Robot/C 580 | . . 60 340 60 120 . Destroy 0b10 Robot/NC 20 | . . . 10 . 10 . Destroy Leader 152 | . . 20 82 20 30 . Allied During Kill 108 | . . . 108 . . . Destroy Structure 4 | . . 4 . . . . Lose Combat Pursuer 75 | . . 60 . . 15 . Influence Decreases 939 | . . 70 462 229 178 . Entered New Map 135 | . . . 43 89 3 . Time Decay 446 | . . 50 169 120 107 . Lost Part 158 | . . 20 50 20 68 . Lost Ally 200 | . . . 200 . . . Squads Dispatched 8 | . 1 1 1 . 5 . Investigation . | . . . . . . . Extermination 1 | . . . . . 1 . Reinforcement 4 | . 1 1 1 . 1 . Assault . | . . . . . . . Garrison 3 | . . . . . 3 . Intercept . | . . . . . . . Searches Triggered . | . . . . . . . Construction Impeded . | . . . . . . . Haulers Reinforced . | . . . . . . . Active Scanning Responses . | . . . . . . . Cargo Convoy Interrupts . | . . . . . . . Stealth | -11 -10 -9 -9 -8 -7 -7 --------- Run | Yrd Mat Mat Sto Mat Fac Low Distress Signals 3 | . . . 1 . 2 . Communications Jammed . | . . . . . . . Distress Signals . | . . . . . . . Times Spotted 54 | . 1 6 20 6 18 3 Peak Tracking Total 8 | . 1 5 5 3 8 2 Tactical Retreats 2 | . . 1 . . 1 . Traps | -11 -10 -9 -9 -8 -7 -7 ------- Run | Yrd Mat Mat Sto Mat Fac Low Traps Triggered 5 | . . . 1 1 3 . Indirectly . | . . . . . . . Trap Hack Attempts . | . . . . . . . Triggered . | . . . . . . . Disarmed . | . . . . . . . Reprogrammed . | . . . . . . . Reused . | . . . . . . . Traps Extracted . | . . . . . . . Installed . | . . . . . . . Triggered . | . . . . . . . Machines | -11 -10 -9 -9 -8 -7 -7 ---------- Run | Yrd Mat Mat Sto Mat Fac Low Machines Disabled . | . . . . . . . Max in Single Turn . | . . . . . . . Machines Repaired . | . . . . . . . Machines Dismantled . | . . . . . . . Machines Sabotaged . | . . . . . . . Overloaded Fab Kills . | . . . . . . . Hacking | -11 -10 -9 -9 -8 -7 -7 --------- Run | Yrd Mat Mat Sto Mat Fac Low Machines Accessed 1 | . . . 1 . . . Terminals 1 | . . . 1 . . . Fabricators . | . . . . . . . Repair Stations . | . . . . . . . Recycling Units . | . . . . . . . Scanalyzers . | . . . . . . . Garrison Access . | . . . . . . . Total Hacks 2 | . . . 2 . . . Successful . | . . . . . . . Failed 2 | . . . 2 . . . Catastrophic . | . . . . . . . Database Lockouts . | . . . . . . . Manual . | . . . . . . . Terminals 2 | . . . 2 . . . Fabricators . | . . . . . . . Repair Stations . | . . . . . . . Recycling Units . | . . . . . . . Scanalyzers . | . . . . . . . Garrison Access . | . . . . . . . Terminal Hacks . | . . . . . . . Fabricator Hacks . | . . . . . . . Repair Station Hacks . | . . . . . . . Recycling Unit Hacks . | . . . . . . . Scanalyzer . | . . . . . . . Garrison Access Hacks . | . . . . . . . Unauthorized Hacks . | . . . . . . . Terminals . | . . . . . . . Fabricators . | . . . . . . . Repair Stations . | . . . . . . . Recycling Units . | . . . . . . . Scanalyzers . | . . . . . . . Garrison Access . | . . . . . . . Data Cores Recovered . | . . . . . . . Used . | . . . . . . . Hacking Detections 1 | . . . 1 . . . Full Trace Events . | . . . . . . . Feedback Events . | . . . . . . . Feedback Blocked . | . . . . . . . Robot Schematics Acquired . | . . . . . . . Robots Built . | . . . . . . . Authchips . | . . . . . . . Time . | . . . . . . . Total Robot Build Rating . | . . . . . . . Part Schematics Acquired . | . . . . . . . Parts Built . | . . . . . . . Authchips . | . . . . . . . Time . | . . . . . . . Total Part Build Rating . | . . . . . . . Part Studies Acquired . | . . . . . . . Parts Repaired . | . . . . . . . Time . | . . . . . . . Parts Recycled . | . . . . . . . Recycled Matter . | . . . . . . . Retrieved Matter . | . . . . . . . Retrieved Components . | . . . . . . . Parts Scanalyzed . | . . . . . . . Part Schematics Acquired . | . . . . . . . Parts Damaged . | . . . . . . . Bothacking | -11 -10 -9 -9 -8 -7 -7 ------------ Run | Yrd Mat Mat Sto Mat Fac Low Used RIF Installer . | . . . . . . . Robots Hacked . | . . . . . . . Non-combat . | . . . . . . . Combat . | . . . . . . . Robot Hacks Applied . | . . . . . . . Relay Couplers Released . | . . . . . . . Fabnet Peak Effective % . | . . . . . . . Robots Rewired . | . . . . . . . Allies Hacked . | . . . . . . . Hacks Repelled . | . . . . . . . Allies | -11 -10 -9 -9 -8 -7 -7 -------- Run | Yrd Mat Mat Sto Mat Fac Low Total Allies 10 | . . . 10 . . . Largest Group 10 | . . . 10 . . . Highest-Rated Group 88 | . . . 88 . . . Highest-Rated Ally 16 | . . . 16 . . . Total Orders . | . . . . . . . Ally Attacks 70 | . . . 70 . . . Total Damage 510 | . . . 510 . . . Kills 13 | . . . 13 . . . Allies Corrupted . | . . . . . . . Allies Melted . | . . . . . . . Intel | -11 -10 -9 -9 -8 -7 -7 ------- Run | Yrd Mat Mat Sto Mat Fac Low Active Infowar (turns) 1869 | . 38 157 410 248 1016 . Optics 1422 | . . . 158 248 1016 . Sensors 639 | . 38 157 410 34 . . Robot Analysis Total . | . . . . . . . Derelict Logs Recovered . | . . . . . . . Drone Launches . | . . . . . . . Drone Recoveries . | . . . . . . . Exploration | -11 -10 -9 -9 -8 -7 -7 ------------- Run | Yrd Mat Mat Sto Mat Fac Low Turns Passed 2037 | 44 111 157 410 248 1029 38 Spaces Moved 1217 | 34 88 88 262 161 508 76 Core 294 | 12 . . . . 206 76 Treads . | . . . . . . . Legs 919 | 22 88 88 262 161 298 . Wheels 4 | . . . . . 4 . Hover . | . . . . . . . Flight . | . . . . . . . Fastest Speed 50 | 50 120 120 120 120 50 50 Average Speed 139 | 95 120 120 120 124 177 50 Slowest Speed 500 | 120 120 120 120 190 500 50 Overloaded Moves . | . . . . . . . Propulsion Burnouts . | . . . . . . . Robots Hopped . | . . . . . . . Potential Cave-ins . | . . . . . . . Cave-ins Triggered . | . . . . . . . Exploration Rate (%) 19 | 4 20 10 50 20 18 13 Regions Visited 6 Branch Regions 2 Pre-discovered Areas . | . . . . . . . Known Exits Taken . | . . . . . . . Unknown Exits Taken 6 | 1 1 1 1 1 1 . Scrap Searched . | . . . . . . . Spaces Dug . | . . . . . . . Terrain Destroyed 4 | . . 4 . . . . Melee . | . . . . . . . Projectile . | . . . . . . . AOE 4 | . . 4 . . . . Terrain Rammed . | . . . . . . . Walls Destroyed . | . . . . . . . Machines Disabled . | . . . . . . . Actions | -11 -10 -9 -9 -8 -7 -7 --------- Run | Yrd Mat Mat Sto Mat Fac Low Total 1408 | 45 91 111 323 183 579 76 Wait 22 | . . . 13 . 9 . Move 1211 | 33 87 87 261 160 507 76 Hop . | . . . . . . . Pick Up 33 | 6 2 2 10 3 10 . Fast Attach 5 | 1 . . . . 4 . Attach 24 | 5 1 1 6 4 7 . Detach . | . . . . . . . Swap 5 | . . 1 1 2 1 . Drop 4 | . . 1 1 1 1 . Fire 89 | . 1 19 25 13 31 . Melee 4 | . . . . . 4 . Ram . | . . . . . . . Kick 1 | . . . 1 . . . Crush . | . . . . . . . Escape Stasis 10 | . . . 5 . 5 . Rewire . | . . . . . . . Trap . | . . . . . . . Miscellaneous . | . . . . . . . Route ------- -11/Scrapyard -10/Materials -9/Materials -9/Storage -8/Materials -7/Factory -7/Lower Caves History --------- Turn | Location | Event 9 | -11/Scrapyard | Discovered new exit (range 16) 45 | -11/Scrapyard | Entered Materials 150 | -10/Materials | Discovered new exit (range 5) 156 | -10/Materials | Entered another Materials area 156 | -9/Materials | Evolved 2 slots: Utility x2 306 | -9/Materials | Build established: Mutant 308 | -9/Materials | Discovered new exit (range 4) 313 | -9/Materials | Entered Storage 409 | -9/Storage | Assisted by bots powering up and referring to "LRC-V3" 582 | -9/Storage | Lost 4 allies 676 | -9/Storage | Lost 3 parts (1p2n) 685 | -9/Storage | Lost 4 allies 697 | -9/Storage | Discovered new exit (range 18) 723 | -9/Storage | Entered Materials 723 | -8/Materials | Evolved 2 slots: Utility x1, Weapon x1 965 | -8/Materials | Discovered new exit (range 6) 971 | -8/Materials | Entered Factory 971 | -7/Factory | Evolved 2 slots: Power x1, Utility x1 1323 | -7/Factory | Build established: Scavenger-Gunner 1441 | -7/Factory | Garrison activated, responded to threat 1582 | -7/Factory | Lost 9 parts (2p3n3u1w) 1731 | -7/Factory | Build established: Scavenger-Mutant 1898 | -7/Factory | Core integrity fell below 50% 1928 | -7/Factory | Lost 4 parts (2p2u) 1957 | -7/Factory | Core integrity fell below 20% 1993 | -7/Factory | Discovered new exit (range 14) 2000 | -7/Factory | Entered Lower Caves 2038 | -7/Lower Caves | Destroyed by Y-54 Guardian with Gatling Laser Last Messages --------------- The Cld. Deuterium Engine is "overloadable", activating it again increases its energy generation and heat output, and may have unintended consequences. See Stability stat context help for more info. U-05 Engineer lays Concrete. Critical hit (Burn: +37). System corrupted: Cld. Deuterium Engine rejected. Acquired Com. Wheel. Com. Wheel destroyed. Triggered Blade Trap. Massive razor-sharp blades shoot up from within the floor. Imp. Melee Analysis Suite severed. Spear severed. Visual Processing Unit severed. EXIT=FOUND LOCATION=UNKNOWN GOAL=ESCAPE Map ----- +----------------------------------------------------+ | ?????????????????????????????????????????????????? | | ?????????????????????????????????????????????????? | | ?????????????????????????????????????????????????? | | ?????????????????????????????????????????????????? | | ?????????????????????????????????????????????????? | | ?????????????????????????????????????????????????? | | ?????????????????????????????????????????????????? | | ?????????????????????????????????????????????????? | | ?????????????????????????????????????????????????? | | ?????????????????????????????????????????????????? | | ?????????????????????????????????????????????????? | | ?????????????????????????????????????????????????? | | ?????????????????? ??????????# ? ????????????????? | | ????????????????# ????????? ?????????????????? | | ???????????????? ????????? ?????????????????? | | ????????????????# ???????# g#???????????#?????? | | ????????????????? Y?????## #?????????? #?????? | | ????????????????? ???## ##?##????? #?????? | | ????????????????? ???# ?? #????# #?????? | | ??????????????????? ??? ??? ##?## ##????? | | ??????????????????### #??# ???? ## ##???? | | ??????????????????# #?# #??## ????? | | ??????????????????? ## #### #??????? | | ??????????????????????# ^ ## #???????? | | ??????????????????????# #??######? | | ????????????????????????#@ #??## #? | | ????????????????????????## ### ##?## ## | | ????????????????????????## ##?# ##?## | | ??????????????????????### ##??# ###??# | | ??????????????????????# #???# #?????# | | ??????????????????????# #???# ####### | | ??????????????????????## ##???# | | ???????????????????????#####????# ## | | ????????????????????????????????################ # | | ???????????????????????????????????????????????### | | ?????????????????????????????????????????????????? | | ?????????????????????????????????????????????????? | | ?????????????????????????????????????????????????? | | ?????????????????????????????????????????????????? | | ?????????????????????????????????????????????????? | | ?????????????????????????????????????????????????? | | ?????????????????????????????????????????????????? | | ?????????????????????????????????????????????????? | | ?????????????????????????????????????????????????? | | ?????????????????????????????????????????????????? | | ?????????????????????????????????????????????????? | | ?????????????????????????????????????????????????? | | ?????????????????????????????????????????????????? | | ?????????????????????????????????????????????????? | | ?????????????????????????????????????????????????? | +----------------------------------------------------+ Best States ------------- Heat Dissipation 48 Energy Generation 25 Energy Capacity 330 Matter Stores 300 Matter Capacity 300 Sight Range 18 Robot Scan Range 14 Terrain Scan Density 10 Armor Coverage 150 Evasion (%) 55 Melee Accuracy 6 Core Analysis 6 Item Schematics ----------------- None Robot Schematics ------------------ None Fabricated ------------ Nothing Repaired ---------- Nothing Studied --------- None Alien Tech Used ----------------- None Achievements -------------- The More The Merrier Troublemaker Challenges ------------ None Game ------ Seed ShockRiotFlamer Manual? 0 Play Time 00:26:44 Cumulative 4.7 hours Start 2026.03.05 @ 05:10:54 End 2026.03.05 @ 05:38:05 Sessions 1 Manual Loads 0 Difficulty Rogue Special Mode None Game No. 9 Rogue 9 Adventurer 0 Explorer 0 Win Type - Total 0 Types 0/0/0/0/0/0/0/0/0/0 Lore% 3 Gallery% 7 Achievement% 6 Wizard Run 0 Options --------- Layout 1 ASCII 0 Keyboard 0 Movement Mouse Keybinds 0 Fullscreen 1 Font 24/Tamsyn Map View 50x35 Zoom Use 0% Tactical HUD 0 Map Filters NONE Filters NONE Steam 1 RUN: 03238bb6-c60c-4e7f-a6ab-6e690bee4a37